[Event "*** Titled Tuesday Blitz"]
[Site "Chess.com"]
[Date "2020.05.26"]
[Round "8"]
[White "Gareth-Bale11"]
[Black "Zakaryan_David"]
[Result "1/2-1/2"]
[WhiteElo "2761"]
[BlackElo "2536"]
[TimeControl "180+1"]
[EndTime "11:42:27 PDT"]
[Termination "Game drawn - insufficient material"]

1. d4 {[%clk 0:03:00.9]} 1... Nf6 {[%clk 0:02:57.4]} 2. c4 {[%clk 0:03:00.4]}
2... g6 {[%clk 0:02:57.4]} 3. Nc3 {[%clk 0:03:00.3]} 3... d5 {[%clk 0:02:57.3]}
4. cxd5 {[%clk 0:02:52.6]} 4... Nxd5 {[%clk 0:02:57.1]} 5. e4 {[%clk 0:02:53.5]}
5... Nxc3 {[%clk 0:02:56.8]} 6. bxc3 {[%clk 0:02:54.4]} 6... Bg7 {[%clk
0:02:56.7]} 7. Be3 {[%clk 0:02:55]} 7... c5 {[%clk 0:02:55.5]} 8. Rc1 {[%clk
0:02:55.5]} 8... Qa5 {[%clk 0:02:54.9]} 9. Qd2 {[%clk 0:02:55.4]} 9... O-O
{[%clk 0:02:54.2]} 10. Nf3 {[%clk 0:02:54.9]} 10... Nd7 {[%clk 0:02:51.3]} 11.
d5 {[%clk 0:02:40.1]} 11... Nf6 {[%clk 0:02:40.9]} 12. c4 {[%clk 0:02:39]} 12...
Qxd2+ {[%clk 0:02:39.6]} 13. Nxd2 {[%clk 0:02:39.9]} 13... b6 {[%clk 0:02:38.9]}
14. f3 {[%clk 0:02:37.7]} 14... e6 {[%clk 0:02:27.7]} 15. Kf2 {[%clk 0:02:32.7]}
15... Ne8 {[%clk 0:02:24]} 16. Bd3 {[%clk 0:02:24.4]} 16... f5 {[%clk
0:02:14.9]} 17. g3 {[%clk 0:01:49.9]} 17... fxe4 {[%clk 0:02:07.6]} 18. Nxe4
{[%clk 0:01:50.8]} 18... exd5 {[%clk 0:01:48]} 19. cxd5 {[%clk 0:01:51.7]} 19...
Bd7 {[%clk 0:01:47.6]} 20. Bc4 {[%clk 0:01:47.9]} 20... Nf6 {[%clk 0:01:45.4]}
21. Nxf6+ {[%clk 0:01:35.2]} 21... Bxf6 {[%clk 0:01:44.4]} 22. Rhe1 {[%clk
0:01:26.4]} 22... Rfe8 {[%clk 0:01:43.3]} 23. Bb3 {[%clk 0:01:03.8]} 23... Kf7
{[%clk 0:01:31.9]} 24. Kg2 {[%clk 0:00:55.5]} 24... Kg7 {[%clk 0:01:25.3]} 25.
Bf4 {[%clk 0:00:50.1]} 25... Rxe1 {[%clk 0:01:23.4]} 26. Rxe1 {[%clk 0:00:51]}
26... Re8 {[%clk 0:01:21.1]} 27. Rxe8 {[%clk 0:00:50]} 27... Bxe8 {[%clk
0:01:22]} 28. Bb8 {[%clk 0:00:43.7]} 28... a6 {[%clk 0:01:20.2]} 29. d6 {[%clk
0:00:37]} 29... Bd7 {[%clk 0:01:17.6]} 30. Ba7 {[%clk 0:00:32.8]} 30... Bd8
{[%clk 0:01:14.9]} 31. Bd5 {[%clk 0:00:32.2]} 31... Kf6 {[%clk 0:01:12.8]} 32.
f4 {[%clk 0:00:32.4]} 32... Be6 {[%clk 0:01:05.9]} 33. Bb7 {[%clk 0:00:22.4]}
33... Bxa2 {[%clk 0:01:00.9]} 34. Bb8 {[%clk 0:00:22.5]} 34... Ke6 {[%clk
0:00:54.5]} 35. Bc8+ {[%clk 0:00:22]} 35... Kd5 {[%clk 0:00:49.5]} 36. Bb7+
{[%clk 0:00:22.1]} 36... Ke6 {[%clk 0:00:43.7]} 37. Bc8+ {[%clk 0:00:21.8]}
37... Kf7 {[%clk 0:00:42.8]} 38. Bxa6 {[%clk 0:00:18.7]} 38... Bd5+ {[%clk
0:00:41.4]} 39. Kf2 {[%clk 0:00:18.8]} 39... Bc6 {[%clk 0:00:36.2]} 40. Bc4+
{[%clk 0:00:15.6]} 40... Ke8 {[%clk 0:00:35.1]} 41. Ke3 {[%clk 0:00:15.9]} 41...
b5 {[%clk 0:00:32.9]} 42. Bg8 {[%clk 0:00:15.9]} 42... h6 {[%clk 0:00:30.9]} 43.
g4 {[%clk 0:00:16.1]} 43... b4 {[%clk 0:00:29.5]} 44. f5 {[%clk 0:00:15.7]}
44... gxf5 {[%clk 0:00:28.6]} 45. gxf5 {[%clk 0:00:16.3]} 45... Bf6 {[%clk
0:00:26.1]} 46. Be6 {[%clk 0:00:14]} 46... Bd7 {[%clk 0:00:23.8]} 47. Kd3 {[%clk
0:00:11]} 47... Bb5+ {[%clk 0:00:23.3]} 48. Ke4 {[%clk 0:00:11.2]} 48... c4
{[%clk 0:00:23.1]} 49. d7+ {[%clk 0:00:09.5]} 49... Kd8 {[%clk 0:00:19.5]} 50.
Ba7 {[%clk 0:00:07.4]} 50... Bc6+ {[%clk 0:00:19.2]} 51. Ke3 {[%clk 0:00:07.3]}
51... Bxd7 {[%clk 0:00:19]} 52. Bxc4 {[%clk 0:00:06.5]} 52... Bxf5 {[%clk
0:00:18.9]} 53. Bc5 {[%clk 0:00:06.6]} 53... Be7 {[%clk 0:00:18.2]} 54. Bd4
{[%clk 0:00:04.8]} 54... Kd7 {[%clk 0:00:17.8]} 55. Bb3 {[%clk 0:00:04.6]} 55...
Be6 {[%clk 0:00:17.6]} 56. Ba4+ {[%clk 0:00:03.5]} 56... Kd6 {[%clk 0:00:16.7]}
57. Kd3 {[%clk 0:00:04.1]} 57... Bd5 {[%clk 0:00:15.7]} 58. Be3 {[%clk
0:00:03.6]} 58... Ke6 {[%clk 0:00:15.5]} 59. Bxh6 {[%clk 0:00:03.2]} 59... Bf6
{[%clk 0:00:15.2]} 60. Bc1 {[%clk 0:00:03]} 60... b3 {[%clk 0:00:14.7]} 61. Bb5
{[%clk 0:00:03.2]} 61... b2 {[%clk 0:00:13.5]} 62. Bxb2 {[%clk 0:00:03.2]} 62...
Bxb2 {[%clk 0:00:13.3]} 63. Bc4 {[%clk 0:00:03.8]} 63... Bxc4+ {[%clk
0:00:12.6]} 64. Kxc4 {[%clk 0:00:04.1]} 64... Kf5 {[%clk 0:00:12.4]} 65. h4
{[%clk 0:00:05]} 65... Kg4 {[%clk 0:00:12.2]} 66. h5 {[%clk 0:00:05.9]} 66...
Bh8 {[%clk 0:00:11.8]} 67. Kb3 {[%clk 0:00:06.8]} 67... Kg5 {[%clk 0:00:11.5]}
68. Kc4 {[%clk 0:00:07.2]} 68... Kh6 {[%clk 0:00:11.4]} 69. Kd5 {[%clk
0:00:06.9]} 69... Kxh5 {[%clk 0:00:11.3]} 1/2-1/2

[Event "*** Titled Tuesday Blitz"]
[Site "Chess.com"]
[Date "2020.05.26"]
[Round "8"]
[White "Quaternitychess"]
[Black "Onischuk_V"]
[Result "1/2-1/2"]
[WhiteElo "2810"]
[BlackElo "2899"]
[TimeControl "180+1"]
[EndTime "11:42:30 PDT"]
[Termination "Game drawn by repetition"]

1. e4 {[%clk 0:03:00.9]} 1... d6 {[%clk 0:02:59.7]} 2. Nc3 {[%clk 0:02:59.3]}
2... Nf6 {[%clk 0:03:00.3]} 3. f4 {[%clk 0:02:59.2]} 3... g6 {[%clk 0:03:01]} 4.
Nf3 {[%clk 0:02:59.1]} 4... Bg7 {[%clk 0:03:01.5]} 5. d4 {[%clk 0:02:59.5]} 5...
O-O {[%clk 0:03:01.9]} 6. e5 {[%clk 0:02:59.9]} 6... dxe5 {[%clk 0:03:01.3]} 7.
fxe5 {[%clk 0:03:00.8]} 7... Nd5 {[%clk 0:03:01.6]} 8. h4 {[%clk 0:02:56.1]}
8... c5 {[%clk 0:02:49]} 9. h5 {[%clk 0:02:55.8]} 9... cxd4 {[%clk 0:02:43]} 10.
Qxd4 {[%clk 0:02:50.1]} 10... Nxc3 {[%clk 0:02:43]} 11. bxc3 {[%clk 0:02:49.9]}
11... Qxd4 {[%clk 0:02:33.7]} 12. cxd4 {[%clk 0:02:49.1]} 12... Nc6 {[%clk
0:02:34.3]} 13. c3 {[%clk 0:02:42.4]} 13... Be6 {[%clk 0:02:25.1]} 14. Bd3
{[%clk 0:02:30.1]} 14... Rac8 {[%clk 0:02:23.5]} 15. Bd2 {[%clk 0:02:26.1]}
15... Rfd8 {[%clk 0:02:17.6]} 16. Be4 {[%clk 0:02:25.2]} 16... Bd5 {[%clk
0:02:09.2]} 17. Bxd5 {[%clk 0:02:24.1]} 17... Rxd5 {[%clk 0:02:09.3]} 18. hxg6
{[%clk 0:02:09.7]} 18... hxg6 {[%clk 0:02:08.8]} 19. Rb1 {[%clk 0:02:09.5]}
19... b6 {[%clk 0:02:04.2]} 20. Ke2 {[%clk 0:02:00.9]} 20... Na5 {[%clk
0:02:01.9]} 21. Rh4 {[%clk 0:01:29.4]} 21... Nc4 {[%clk 0:01:51.2]} 22. Bh6
{[%clk 0:01:28.6]} 22... f6 {[%clk 0:01:45.2]} 23. e6 {[%clk 0:01:16.1]} 23...
g5 {[%clk 0:01:24.9]} 24. Rh5 {[%clk 0:01:06.6]} 24... Rd6 {[%clk 0:01:24.5]}
25. Bxg7 {[%clk 0:01:06.5]} 25... Rxe6+ {[%clk 0:01:22.5]} 26. Kf2 {[%clk
0:01:06.7]} 26... Kxg7 {[%clk 0:01:22.1]} 27. Rbh1 {[%clk 0:01:07.6]} 27... Re4
{[%clk 0:01:17.1]} 28. d5 {[%clk 0:00:52.4]} 28... Nd6 {[%clk 0:01:05.5]} 29.
Nd4 {[%clk 0:00:50.9]} 29... Rh4 {[%clk 0:01:00.6]} 30. R1xh4 {[%clk 0:00:48.4]}
30... gxh4 {[%clk 0:01:00.2]} 31. Rxh4 {[%clk 0:00:46]} 31... Rxc3 {[%clk
0:00:58.7]} 32. Ne6+ {[%clk 0:00:46.2]} 32... Kg6 {[%clk 0:00:55.5]} 33. g4
{[%clk 0:00:38.7]} 33... Ne4+ {[%clk 0:00:46.2]} 34. Ke2 {[%clk 0:00:37.1]}
34... Ng5 {[%clk 0:00:45.3]} 35. Nd4 {[%clk 0:00:34.5]} 35... Ra3 {[%clk
0:00:40.2]} 36. Nf5 {[%clk 0:00:34.3]} 36... Rxa2+ {[%clk 0:00:39.8]} 37. Kd3
{[%clk 0:00:34.8]} 37... Kf7 {[%clk 0:00:38.6]} 38. Rh8 {[%clk 0:00:32.9]} 38...
Ra5 {[%clk 0:00:36.2]} 39. Kc4 {[%clk 0:00:31.7]} 39... Ra4+ {[%clk 0:00:35.7]}
40. Kb5 {[%clk 0:00:30.6]} 40... Ra5+ {[%clk 0:00:35.9]} 41. Kc4 {[%clk
0:00:30]} 41... Rc5+ {[%clk 0:00:35.9]} 42. Kd4 {[%clk 0:00:30]} 42... e6 {[%clk
0:00:34.1]} 43. dxe6+ {[%clk 0:00:23.2]} 43... Nxe6+ {[%clk 0:00:33.8]} 44. Ke3
{[%clk 0:00:23.6]} 44... Re5+ {[%clk 0:00:33]} 45. Kf3 {[%clk 0:00:22.4]} 45...
a5 {[%clk 0:00:31.6]} 46. Rh7+ {[%clk 0:00:21.6]} 46... Kg8 {[%clk 0:00:30.6]}
47. Rb7 {[%clk 0:00:22.5]} 47... b5 {[%clk 0:00:28.1]} 48. Ne7+ {[%clk
0:00:22.4]} 48... Kf7 {[%clk 0:00:12.4]} 49. Nc6+ {[%clk 0:00:22.1]} 49... Kg6
{[%clk 0:00:12.9]} 50. Nxe5+ {[%clk 0:00:22.1]} 50... fxe5 {[%clk 0:00:13.5]}
51. Ke3 {[%clk 0:00:19.5]} 51... b4 {[%clk 0:00:12.8]} 52. Rb5 {[%clk
0:00:19.8]} 52... Kf6 {[%clk 0:00:05.5]} 53. Rxa5 {[%clk 0:00:19.3]} 53... b3
{[%clk 0:00:06]} 54. Rb5 {[%clk 0:00:18.8]} 54... Nd4 {[%clk 0:00:05.7]} 55.
Rb6+ {[%clk 0:00:17.6]} 55... Kg5 {[%clk 0:00:06]} 56. Ke4 {[%clk 0:00:18]}
56... Kxg4 {[%clk 0:00:06.4]} 57. Kxe5 {[%clk 0:00:18.6]} 57... Nf3+ {[%clk
0:00:06.8]} 58. Ke4 {[%clk 0:00:17.9]} 58... Nd2+ {[%clk 0:00:06.9]} 59. Kd3
{[%clk 0:00:18.1]} 59... Nf3 {[%clk 0:00:06.5]} 60. Rxb3 {[%clk 0:00:17.6]}
60... Ng5 {[%clk 0:00:06.5]} 61. Rb4+ {[%clk 0:00:17.4]} 61... Kf5 {[%clk
0:00:06.7]} 62. Rb5+ {[%clk 0:00:15.7]} 62... Kf4 {[%clk 0:00:06.3]} 63. Kd4
{[%clk 0:00:15.8]} 63... Nf3+ {[%clk 0:00:06.2]} 64. Kc3 {[%clk 0:00:16.7]}
64... Ng5 {[%clk 0:00:06.4]} 65. Rb4+ {[%clk 0:00:17.6]} 65... Kf5 {[%clk
0:00:06.6]} 66. Kd3 {[%clk 0:00:17.4]} 66... Ne6 {[%clk 0:00:06.8]} 67. Rb5+
{[%clk 0:00:17.2]} 67... Kf4 {[%clk 0:00:07.2]} 68. Kc4 {[%clk 0:00:17]} 68...
Ng5 {[%clk 0:00:07.5]} 69. Rb8 {[%clk 0:00:17.5]} 69... Nf3 {[%clk 0:00:07.5]}
70. Kd5 {[%clk 0:00:17.7]} 70... Ke3 {[%clk 0:00:07.8]} 71. Rf8 {[%clk
0:00:18.6]} 71... Nd2 {[%clk 0:00:07.3]} 72. Rh8 {[%clk 0:00:17.7]} 72... Nf3
{[%clk 0:00:07.1]} 73. Rh3 {[%clk 0:00:18.6]} 73... Kf4 {[%clk 0:00:07.4]} 74.
Rh1 {[%clk 0:00:18.8]} 74... Ke3 {[%clk 0:00:07.5]} 75. Rh8 {[%clk 0:00:18.2]}
75... Kf4 {[%clk 0:00:07.4]} 76. Rh1 {[%clk 0:00:18.6]} 76... Ke3 {[%clk
0:00:07.4]} 77. Rh8 {[%clk 0:00:19.1]} 77... Kf4 {[%clk 0:00:07.4]} 78. Rh1
{[%clk 0:00:19.4]} 1/2-1/2

[Event "*** Titled Tuesday Blitz"]
[Site "Chess.com"]
[Date "2020.05.26"]
[Round "8"]
[White "chessplayer9919"]
[Black "Vesper2018"]
[Result "1/2-1/2"]
[WhiteElo "2482"]
[BlackElo "2319"]
[TimeControl "180+1"]
[EndTime "11:42:30 PDT"]
[Termination "Game drawn by repetition"]

1. d4 {[%clk 0:02:58.3]} 1... Nf6 {[%clk 0:03:00.3]} 2. c4 {[%clk 0:02:57.9]}
2... g6 {[%clk 0:03:00.8]} 3. Nc3 {[%clk 0:02:57.7]} 3... Bg7 {[%clk 0:03:01.2]}
4. e4 {[%clk 0:02:57.7]} 4... d6 {[%clk 0:03:01.7]} 5. f4 {[%clk 0:02:58.3]}
5... O-O {[%clk 0:03:01.1]} 6. Nf3 {[%clk 0:02:58.8]} 6... c5 {[%clk 0:03:01.6]}
7. d5 {[%clk 0:02:57.5]} 7... e6 {[%clk 0:03:02]} 8. Be2 {[%clk 0:02:57.2]} 8...
exd5 {[%clk 0:03:01.4]} 9. cxd5 {[%clk 0:02:58.1]} 9... Bg4 {[%clk 0:02:59.6]}
10. O-O {[%clk 0:02:54.9]} 10... Bxf3 {[%clk 0:02:58.1]} 11. Bxf3 {[%clk
0:02:54.6]} 11... Nbd7 {[%clk 0:02:58.5]} 12. Re1 {[%clk 0:02:53.8]} 12... Re8
{[%clk 0:02:56.1]} 13. a4 {[%clk 0:02:40.7]} 13... c4 {[%clk 0:02:52.2]} 14. Be3
{[%clk 0:02:39.9]} 14... Rc8 {[%clk 0:02:43.3]} 15. Bd4 {[%clk 0:02:27.8]} 15...
Nc5 {[%clk 0:02:38.3]} 16. e5 {[%clk 0:02:08.4]} 16... Nd3 {[%clk 0:02:30.4]}
17. Re2 {[%clk 0:01:30.4]} 17... Nd7 {[%clk 0:02:29.1]} 18. Bg4 {[%clk 0:01:24]}
18... Nxf4 {[%clk 0:02:20.2]} 19. e6 {[%clk 0:01:03.6]} 19... Nxe2+ {[%clk
0:02:13.5]} 20. Nxe2 {[%clk 0:01:03]} 20... fxe6 {[%clk 0:02:11.5]} 21. Bxe6+
{[%clk 0:00:51.1]} 21... Kh8 {[%clk 0:02:05.2]} 22. Bxg7+ {[%clk 0:00:49.8]}
22... Kxg7 {[%clk 0:02:05.5]} 23. Qd4+ {[%clk 0:00:48.2]} 23... Ne5 {[%clk
0:02:05.2]} 24. Bxc8 {[%clk 0:00:48.3]} 24... Qxc8 {[%clk 0:02:04.4]} 25. Rf1
{[%clk 0:00:48.4]} 25... Qc5 {[%clk 0:01:49.5]} 26. Qxc5 {[%clk 0:00:46.8]}
26... dxc5 {[%clk 0:01:50]} 27. Nf4 {[%clk 0:00:44.8]} 27... b6 {[%clk
0:01:41.9]} 28. Ne6+ {[%clk 0:00:44.6]} 28... Kg8 {[%clk 0:01:42.1]} 29. Rf4
{[%clk 0:00:30]} 29... Nd7 {[%clk 0:01:04.2]} 30. Rxc4 {[%clk 0:00:24.8]} 30...
Nf6 {[%clk 0:01:04.3]} 31. Nc7 {[%clk 0:00:18]} 31... Re1+ {[%clk 0:01:01.1]}
32. Kf2 {[%clk 0:00:18.3]} 32... Rd1 {[%clk 0:01:01.7]} 33. Ke2 {[%clk
0:00:12.5]} 33... Rb1 {[%clk 0:01:00.3]} 34. Rc2 {[%clk 0:00:12.3]} 34... Kf7
{[%clk 0:00:56.1]} 35. Nb5 {[%clk 0:00:09.2]} 35... Nxd5 {[%clk 0:00:50.1]} 36.
Nxa7 {[%clk 0:00:08.9]} 36... Ra1 {[%clk 0:00:42.5]} 37. Rd2 {[%clk 0:00:06.6]}
37... Ke6 {[%clk 0:00:41.6]} 38. Nc8 {[%clk 0:00:03.7]} 38... Rxa4 {[%clk
0:00:21.6]} 39. Rxd5 {[%clk 0:00:03.9]} 39... Re4+ {[%clk 0:00:21.7]} 40. Kd3
{[%clk 0:00:04.5]} 40... Kxd5 {[%clk 0:00:22.2]} 41. Nxb6+ {[%clk 0:00:05.2]}
41... Ke5 {[%clk 0:00:21.4]} 42. Nc4+ {[%clk 0:00:03]} 42... Kd5 {[%clk
0:00:14.6]} 43. Nb6+ {[%clk 0:00:03]} 43... Ke5 {[%clk 0:00:14.9]} 44. Nc4+
{[%clk 0:00:03.4]} 44... Rxc4 {[%clk 0:00:11.6]} 45. Kxc4 {[%clk 0:00:03.6]}
45... Kd6 {[%clk 0:00:12.3]} 46. g3 {[%clk 0:00:02.3]} 46... Kc6 {[%clk
0:00:11.4]} 47. b3 {[%clk 0:00:02.5]} 47... Kd6 {[%clk 0:00:11.4]} 48. Kc3
{[%clk 0:00:03.1]} 48... Kd5 {[%clk 0:00:11.6]} 49. Kd3 {[%clk 0:00:03.6]} 49...
g5 {[%clk 0:00:11.6]} 50. g4 {[%clk 0:00:03.4]} 50... h6 {[%clk 0:00:11.8]} 51.
h3 {[%clk 0:00:03.9]} 51... Ke5 {[%clk 0:00:11.4]} 52. Ke3 {[%clk 0:00:04.5]}
52... Kd5 {[%clk 0:00:11.9]} 53. Kd3 {[%clk 0:00:05]} 53... Ke5 {[%clk
0:00:12.4]} 54. Kc4 {[%clk 0:00:05]} 54... Kd6 {[%clk 0:00:07.3]} 55. Kc3 {[%clk
0:00:05.5]} 55... Kc6 {[%clk 0:00:06.5]} 56. Kd3 {[%clk 0:00:04]} 56... Kb6
{[%clk 0:00:05.7]} 57. Kc4 {[%clk 0:00:04]} 57... Kc6 {[%clk 0:00:06.2]} 58. Kd3
{[%clk 0:00:04.3]} 58... Kd6 {[%clk 0:00:05.3]} 59. Kc4 {[%clk 0:00:03]} 59...
Kc6 {[%clk 0:00:05.6]} 60. Kc3 {[%clk 0:00:03.4]} 60... Kb5 {[%clk 0:00:04.8]}
61. Kd3 {[%clk 0:00:02.4]} 61... Kb4 {[%clk 0:00:05]} 62. Kc2 {[%clk 0:00:03]}
62... c4 {[%clk 0:00:05.5]} 63. bxc4 {[%clk 0:00:03.5]} 63... Kxc4 {[%clk
0:00:06]} 64. Kd2 {[%clk 0:00:03.5]} 64... Kd4 {[%clk 0:00:06.5]} 65. Ke2 {[%clk
0:00:04.1]} 65... Ke4 {[%clk 0:00:07.1]} 66. Kf2 {[%clk 0:00:04.7]} 66... Kf4
{[%clk 0:00:07.2]} 67. Kg2 {[%clk 0:00:05.4]} 67... Ke3 {[%clk 0:00:07.6]} 68.
Kg3 {[%clk 0:00:05.9]} 68... Ke2 {[%clk 0:00:07.2]} 69. Kg2 {[%clk 0:00:06.3]}
69... Ke1 {[%clk 0:00:07.3]} 70. Kg1 {[%clk 0:00:06.6]} 70... Ke2 {[%clk
0:00:07.7]} 71. Kg2 {[%clk 0:00:07]} 71... Ke3 {[%clk 0:00:08.2]} 72. Kg3 {[%clk
0:00:07.5]} 72... Ke4 {[%clk 0:00:08.7]} 73. Kg2 {[%clk 0:00:08.1]} 73... Ke3
{[%clk 0:00:05]} 1/2-1/2

[Event "*** Titled Tuesday Blitz"]
[Site "Chess.com"]
[Date "2020.05.26"]
[Round "8"]
[White "Savva09022009"]
[Black "allvim"]
[Result "1/2-1/2"]
[WhiteElo "2401"]
[BlackElo "2270"]
[TimeControl "180+1"]
[EndTime "11:42:34 PDT"]
[Termination "Game drawn - insufficient material"]

1. d4 {[%clk 0:03:00.9]} 1... Nf6 {[%clk 0:02:58.2]} 2. Nc3 {[%clk 0:03:00.8]}
2... d5 {[%clk 0:02:57.6]} 3. Bf4 {[%clk 0:03:01.1]} 3... c6 {[%clk 0:02:55.4]}
4. e3 {[%clk 0:03:00.4]} 4... e6 {[%clk 0:02:55.6]} 5. Nf3 {[%clk 0:03:00.1]}
5... Bd6 {[%clk 0:02:56]} 6. Bd3 {[%clk 0:02:55.7]} 6... Qe7 {[%clk 0:02:49.6]}
7. O-O {[%clk 0:02:49.3]} 7... O-O {[%clk 0:02:49.1]} 8. Bxd6 {[%clk 0:02:47.2]}
8... Qxd6 {[%clk 0:02:49.2]} 9. e4 {[%clk 0:02:48]} 9... dxe4 {[%clk 0:02:48]}
10. Nxe4 {[%clk 0:02:47.9]} 10... Nxe4 {[%clk 0:02:48.4]} 11. Bxe4 {[%clk
0:02:48.5]} 11... Nd7 {[%clk 0:02:49]} 12. Qe2 {[%clk 0:02:47]} 12... Nf6 {[%clk
0:02:48.6]} 13. Bd3 {[%clk 0:02:46.2]} 13... c5 {[%clk 0:02:47]} 14. c3 {[%clk
0:02:45.7]} 14... cxd4 {[%clk 0:02:46.9]} 15. Nxd4 {[%clk 0:02:46.4]} 15... b6
{[%clk 0:02:38]} 16. Qf3 {[%clk 0:02:37]} 16... Rb8 {[%clk 0:02:38.3]} 17. Rad1
{[%clk 0:02:31.7]} 17... Bb7 {[%clk 0:02:32.6]} 18. Qh3 {[%clk 0:02:31.3]} 18...
Qe5 {[%clk 0:02:17.5]} 19. f4 {[%clk 0:02:26]} 19... Qh5 {[%clk 0:02:13]} 20.
Qxh5 {[%clk 0:02:21.2]} 20... Nxh5 {[%clk 0:02:13.9]} 21. f5 {[%clk 0:02:11.6]}
21... exf5 {[%clk 0:02:14.8]} 22. Bxf5 {[%clk 0:02:10.4]} 22... Rfe8 {[%clk
0:02:07.9]} 23. Nb5 {[%clk 0:02:05.8]} 23... Re2 {[%clk 0:01:37.3]} 24. Rf2
{[%clk 0:01:53.8]} 24... Rxf2 {[%clk 0:01:31.1]} 25. Kxf2 {[%clk 0:01:47.5]}
25... a6 {[%clk 0:01:25.1]} 26. Nd6 {[%clk 0:01:23.4]} 26... Bc6 {[%clk
0:01:19.3]} 27. Nc8 {[%clk 0:01:15.9]} 27... Be8 {[%clk 0:00:53.4]} 28. Rd8
{[%clk 0:01:08.2]} 28... Kf8 {[%clk 0:00:53.4]} 29. Ke3 {[%clk 0:01:03]} 29...
Nf6 {[%clk 0:00:51.4]} 30. Kd4 {[%clk 0:01:01.6]} 30... g6 {[%clk 0:00:47.8]}
31. Bh3 {[%clk 0:00:59.4]} 31... Kg7 {[%clk 0:00:42.2]} 32. Ke5 {[%clk
0:00:49.2]} 32... Bc6 {[%clk 0:00:23]} 33. Rd6 {[%clk 0:00:37.9]} 33... Bd5
{[%clk 0:00:19.7]} 34. Rxf6 {[%clk 0:00:33]} 34... Bxa2 {[%clk 0:00:18]} 35.
Rxb6 {[%clk 0:00:23.7]} 35... Ra8 {[%clk 0:00:16.9]} 36. Rb7 {[%clk 0:00:21.5]}
36... a5 {[%clk 0:00:14]} 37. Kd6 {[%clk 0:00:20]} 37... a4 {[%clk 0:00:11.9]}
38. Kc7 {[%clk 0:00:19.6]} 38... Ra5 {[%clk 0:00:10.8]} 39. Kb6 {[%clk
0:00:18.2]} 39... Re5 {[%clk 0:00:10.5]} 40. Nd6 {[%clk 0:00:17.8]} 40... Re2
{[%clk 0:00:09.6]} 41. Ka5 {[%clk 0:00:17.6]} 41... Bb3 {[%clk 0:00:07.2]} 42.
c4 {[%clk 0:00:15.8]} 42... Rxb2 {[%clk 0:00:07]} 43. Rxf7+ {[%clk 0:00:15.3]}
43... Kh6 {[%clk 0:00:07]} 44. c5 {[%clk 0:00:13.4]} 44... a3 {[%clk 0:00:07.2]}
45. Rf1 {[%clk 0:00:13.3]} 45... a2 {[%clk 0:00:04.7]} 46. Ra1 {[%clk
0:00:13.8]} 46... Rb1 {[%clk 0:00:05.3]} 47. Rxa2 {[%clk 0:00:14.1]} 47... Bxa2
{[%clk 0:00:06.2]} 48. c6 {[%clk 0:00:14.3]} 48... Rc1 {[%clk 0:00:06.5]} 49.
Kb6 {[%clk 0:00:14.3]} 49... Bd5 {[%clk 0:00:07.1]} 50. c7 {[%clk 0:00:14.4]}
50... Rc6+ {[%clk 0:00:02.6]} 51. Kb5 {[%clk 0:00:13.7]} 51... Rxc7 {[%clk
0:00:02.7]} 52. Kb6 {[%clk 0:00:12.8]} 52... Bg8 {[%clk 0:00:03.2]} 53. Kxc7
{[%clk 0:00:12.7]} 53... Bb3 {[%clk 0:00:03.2]} 54. Kd7 {[%clk 0:00:12.2]} 54...
Kh5 {[%clk 0:00:03.5]} 55. Ne4 {[%clk 0:00:09.9]} 55... Bc2 {[%clk 0:00:02.1]}
56. Ng3+ {[%clk 0:00:08.9]} 56... Kh6 {[%clk 0:00:03]} 57. Kd6 {[%clk
0:00:09.6]} 57... Kg7 {[%clk 0:00:03.3]} 58. Ke5 {[%clk 0:00:09.7]} 58... h5
{[%clk 0:00:03.5]} 59. Ne4 {[%clk 0:00:10.2]} 59... Kh6 {[%clk 0:00:03.2]} 60.
g3 {[%clk 0:00:10.3]} 60... Ba4 {[%clk 0:00:03.4]} 61. Kf6 {[%clk 0:00:10.2]}
61... Bc2 {[%clk 0:00:03.1]} 62. Ng5 {[%clk 0:00:10.5]} 62... Bd3 {[%clk
0:00:02.5]} 63. Be6 {[%clk 0:00:10.8]} 63... Bc2 {[%clk 0:00:02.3]} 64. Bg8
{[%clk 0:00:11.4]} 64... h4 {[%clk 0:00:01.3]} 65. Nf7+ {[%clk 0:00:11.9]} 65...
Kh5 {[%clk 0:00:01.9]} 66. Ng5 {[%clk 0:00:09.9]} 66... hxg3 {[%clk 0:00:01.9]}
67. hxg3 {[%clk 0:00:09.1]} 67... Kg4 {[%clk 0:00:02.5]} 68. Be6+ {[%clk
0:00:08.1]} 68... Kxg3 {[%clk 0:00:02.9]} 69. Nf7 {[%clk 0:00:07.5]} 69... Bf5
{[%clk 0:00:03.3]} 70. Ne5 {[%clk 0:00:07.6]} 70... Bxe6 {[%clk 0:00:03.5]} 71.
Kxe6 {[%clk 0:00:07]} 71... g5 {[%clk 0:00:04.4]} 72. Kf5 {[%clk 0:00:07.1]}
72... g4 {[%clk 0:00:05.3]} 73. Nxg4 {[%clk 0:00:07.5]} 1/2-1/2